bitfinex/quotes_ETHUSD_20240821
["timestamp","ask_amount","ask_price","bid_price","bid_amount"]
[1724276320025,6.6690689,2644.9,2644.5,12.54865206]
[1724276321400,3.78051,2645.2,2644.5,14.15565206]
[1724276321605,5.38705,2645.5,2644.8,3.78093]
[1724276321773,8.3927,2645.6,2645.1,3.78043]
[1724276321968,0.39533092,2645.7,2645.2,12.92669506]
[1724276322217,0.39533092,2645.7,2645.3,12.54865206]
[1724276322601,0.39533092,2645.7,2645.3,20.83155206]
[1724276322911,0.39533092,2645.7,2645.4,12.54865206]
[1724276326629,4.17508092,2645.7,2645.4,12.54865206]
[1724276328201,4.17508092,2645.7,2645.4,14.66961157]
[1724276328415,0.39533092,2645.7,2645.5,12.54865206]
[1724276328589,4.17512092,2645.7,2645.3,12.54865206]
[1724276329823,3.77986,2645.6,2645.3,12.54865206]
[1724276330136,3.77986,2645.6,2645.3,13.84132157]
[1724276330335,3.77986,2645.6,2645.4,12.54865206]
[1724276336562,3.77986,2645.6,2645.3,12.54865206]
[1724276338486,4.17505092,2645.7,2645.3,12.54865206]
[1724276338763,4.17505092,2645.7,2645.3,13.84132157]
[1724276338966,4.17505092,2645.7,2645.4,12.54865206]
[1724276340032,3.77987,2645.6,2645.4,12.54865206]
[1724276342595,3.77987,2645.6,2645.3,12.54865206]
[1724276343814,5.78205092,2645.7,2645.3,12.54865206]
[1724276344107,5.78205092,2645.7,2645.3,14.21937657]
[1724276344313,5.78205092,2645.7,2645.4,12.54865206]
[1724276344673,5.78205092,2645.7,2645.3,12.54865206]
[1724276345075,3.77988,2645.6,2645.3,12.54865206]
[1724276348619,3.77988,2645.6,2645.3,13.56237539]
[1724276348825,3.77988,2645.6,2645.4,12.54865206]
[1724276349278,5.78206092,2645.7,2645.4,12.54865206]
[1724276350887,2.00233092,2645.7,2645.4,12.54865206]
[1724276351231,5.78206092,2645.7,2645.4,12.54865206]
[1724276358430,5.78206092,2645.7,2645.3,12.54865206]
[1724276359970,4.17506092,2645.7,2645.3,12.54865206]
[1724276366699,3.78002,2645.5,2645.3,12.54865206]
[1724276366999,3.78002,2645.5,2645.1,12.54865206]
[1724276367606,0.39529269,2645.4,2645.1,12.54865206]
[1724276370216,8.61939269,2645.4,2645.1,12.54865206]
[1724276370387,8.61939269,2645.4,2645.0,12.54865206]
[1724276370388,0.39529269,2645.4,2645.0,12.54865206]
[1724276373044,0.39529269,2645.4,2645.0,16.32935206]
[1724276373345,0.39529269,2645.4,2645.2,7.8608]
[1724276373552,0.39529269,2645.4,2645.3,12.54865206]
[1724276385245,0.39529269,2645.4,2645.2,12.54865206]
[1724276385646,0.39529269,2645.4,2645.1,12.54865206]
[1724276385854,0.39529269,2645.4,2645.1,16.32921206]
[1724276386022,0.39529269,2645.4,2645.2,12.54865206]
[1724276386561,0.39529269,2645.4,2645.0,12.54865206]
[1724276387260,0.39529269,2645.4,2645.0,16.32935206]
[1724276387563,0.39529269,2645.4,2645.1,12.54865206]
[1724276391293,3.78043,2645.2,2645.1,12.54865206]
[1724276391434,3.78062,2645.1,2644.7,12.54865206]
[1724276391622,5.38762,2645.1,2644.6,12.54865206]
[1724276391818,3.78086,2644.9,2644.5,12.54865206]
[1724276392062,8.5186,2644.7,2644.5,12.54865206]
[1724276392272,12.29979,2644.7,2644.5,12.54865206]
[1724276392764,8.5186,2644.7,2644.5,12.54865206]
[1724276396127,8.5186,2644.7,2644.4,12.54865206]
[1724276397351,0.55,2644.6,2644.4,12.54865206]
[1724276397537,13.90686,2644.7,2644.1,12.54865206]
[1724276398165,13.90686,2644.7,2644.1,16.33060206]
[1724276398375,13.90686,2644.7,2644.2,12.54865206]
[1724276398868,10.1256,2644.7,2644.2,12.54865206]
[1724276399232,10.1256,2644.7,2644.2,16.33050206]
[1724276399570,8.5186,2644.7,2644.3,16.33027206]
[1724276399736,8.5186,2644.7,2644.4,12.54865206]
[1724276400442,3.78143,2644.5,2644.4,12.54865206]
[1724276400643,12.32994,2644.9,2644.0,20.81305206]
[1724276400978,0.39515485,2645.0,2644.0,20.81305206]
[1724276400979,0.39515485,2645.0,2644.6,3.78128]
[1724276401282,0.39515485,2645.0,2644.9,29.98177206]
[1724276401579,8.549,2645.8,2645.4,3.78014]
[1724276401783,8.549,2645.8,2645.5,12.54865206]
[1724276402071,0.39514292,2645.7,2645.5,12.54865206]
[1724276402228,0.39514292,2645.7,2645.4,12.54865206]
[1724276403577,0.39514292,2645.7,2645.3,12.54865206]
[1724276403750,0.39514292,2645.7,2645.3,13.84058456]
[1724276403965,0.39514292,2645.7,2645.4,12.54865206]
[1724276416193,3.77987,2645.6,2645.2,12.54865206]
[1724276416359,3.77987,2645.6,2645.1,12.54865206]
[1724276416693,4.17486292,2645.7,2645.1,12.54865206]
[1724276417254,4.17486292,2645.7,2645.1,16.21753399]
[1724276417458,4.17486292,2645.7,2645.2,12.54865206]
[1724276419994,0.39514292,2645.7,2645.2,16.32906206]
[1724276420303,0.39514292,2645.7,2645.3,12.54865206]
[1724276422552,0.39514292,2645.7,2645.4,3.78012]
[1724276422684,0.39514292,2645.7,2645.6,3.77986]
[1724276422883,0.39514292,2645.7,2645.6,20.10837206]
[1724276423697,0.39514292,2645.7,2645.6,27.89567206]
[1724276435685,0.39514292,2645.7,2645.6,20.10837206]
[1724276436291,0.39514292,2645.7,2645.6,16.32851206]
[1724276436489,0.39514292,2645.7,2645.6,20.26095273]
[1724276441001,0.39514292,2645.7,2645.6,24.04081273]
[1724276449310,0.39514292,2645.7,2645.6,16.32851206]
[1724276449601,0.39514292,2645.7,2645.6,29.66437206]
[1724276451600,0.39514292,2645.7,2645.6,30.04307206]
[1724276452885,0.39514292,2645.7,2645.6,33.82293206]
[1724276453662,0.39514292,2645.7,2645.6,30.04307206]
[1724276453996,0.39514292,2645.7,2645.6,33.58865899]
[1724276454206,0.39514292,2645.7,2645.6,36.58865899]
[1724276456097,0.39514292,2645.7,2645.6,34.98165899]
[1724276456507,0.39514292,2645.7,2645.6,36.58865899]
[1724276457403,0.39514292,2645.7,2645.6,34.98165899]
[1724276457768,0.39514292,2645.7,2645.6,36.58865899]
[1724276466833,0.39514292,2645.7,2645.6,28.63965899]
[1724276475702,0.39514292,2645.7,2645.6,28.26095899]
[1724276476702,8.1909,2646.1,2645.9,7.5587]
[1724276476999,8.1909,2646.1,2646.0,12.54865206]
[1724276484358,8.1909,2646.1,2646.0,16.32793206]
[1724276487162,0.39519471,2646.2,2646.0,16.32793206]
[1724276487367,0.39519471,2646.2,2646.1,12.54865206]
[1724276492033,8.44119471,2646.2,2646.1,12.54865206]
[1724276492365,9.28531418,2646.2,2645.8,12.54865206]
[1724276493069,13.06431418,2646.2,2645.8,12.54865206]
[1724276493869,9.28531418,2646.2,2645.8,12.54865206]
[1724276494235,9.28531418,2646.2,2645.8,16.32819206]
[1724276494435,8.44119471,2646.2,2645.9,12.54865206]
[1724276500229,8.44119471,2646.2,2645.9,16.32807206]
[1724276500430,8.44119471,2646.2,2646.0,12.54865206]
[1724276504447,0.39519471,2646.2,2646.0,12.54865206]
[1724276505783,8.2704,2646.1,2646.0,12.54865206]
[1724276514696,10.78035947,2646.1,2646.0,12.54865206]
[1724276514990,8.3068,2646.0,2645.6,12.54865206]
[1724276515221,1.607,2645.9,2645.6,12.54865206]
[1724276515392,12.08644,2645.8,2645.6,12.54865206]
[1724276515693,10.054088,2645.7,2645.6,12.54865206]
[1724276517980,10.054088,2645.7,2645.4,12.54865206]
[1724276518723,15.440838,2645.7,2645.4,12.54865206]
[1724276520530,10.913838,2645.7,2645.4,12.54865206]
[1724276520705,8.2507,2645.6,2645.4,12.54865206]
[1724276521033,0.8807249,2645.5,2645.4,12.54865206]
[1724276521634,14.5184249,2645.5,2645.4,12.54865206]
[1724276521792,14.5184249,2645.5,2645.3,12.54865206]
[1724276521993,8.2507,2645.4,2644.9,12.54865206]
[1724276522193,12.03084,2645.4,2644.9,12.54865206]
[1724276522427,1.45185649,2645.3,2644.9,12.54865206]
[1724276523633,1.45185649,2645.3,2644.8,12.54865206]
[1724276525115,8.2507,2645.2,2644.8,12.54865206]
[1724276525502,12.03113,2645.2,2644.7,12.54865206]
[1724276525695,13.20728641,2645.2,2644.7,12.54865206]
[1724276526553,16.98784641,2645.2,2644.6,12.54865206]
[1724276527218,13.20728641,2645.2,2644.6,12.54865206]
[1724276527422,13.20728641,2645.2,2644.6,16.32992206]
[1724276527605,13.20728641,2645.2,2644.7,12.54865206]
[1724276528309,1.45185649,2645.1,2644.7,12.54865206]
[1724276530617,0.39512864,2645.0,2644.7,12.54865206]
[1724276534002,0.39512864,2645.0,2644.7,16.32976206]
[1724276534242,0.39512864,2645.0,2644.8,12.54865206]
[1724276534747,0.39512864,2645.0,2644.9,3.78086]
[1724276534946,0.39512864,2645.0,2644.9,16.32951206]
[1724276537043,0.39512864,2645.0,2644.9,12.54865206]
[1724276541971,0.39512864,2645.0,2644.8,12.54865206]
[1724276548615,0.39512864,2645.0,2644.7,12.54865206]
[1724276550123,0.39512864,2645.0,2644.7,16.32977206]
[1724276550294,0.39512864,2645.0,2644.8,12.54865206]
[1724276561361,0.39512864,2645.0,2644.7,12.54865206]
[1724276564858,0.39512864,2645.0,2644.7,16.32979206]
[1724276565066,0.39512864,2645.0,2644.9,8.1907]
[1724276565361,0.39512864,2645.0,2644.9,20.73935206]
[1724276567821,0.39512864,2645.0,2644.9,12.54865206]
[1724276568039,0.39512864,2645.0,2644.8,12.54865206]
[1724276568251,4.17584864,2645.0,2644.8,12.54865206]
[1724276568446,5.36526886,2644.9,2644.5,12.54865206]
[1724276569048,7.7957,2644.8,2644.5,12.54865206]
[1724276569674,0.39500598,2644.7,2644.5,12.54865206]
[1724276595442,0.39500598,2644.7,2644.4,12.54865206]
[1724276598803,0.39500598,2644.7,2644.4,16.33019206]
[1724276599105,0.39500598,2644.7,2644.5,12.54865206]
[1724276602775,0.39500598,2644.7,2644.5,16.32998206]
[1724276602972,0.39500598,2644.7,2644.6,12.54865206]
[1724276606485,8.65940598,2644.7,2644.5,12.54865206]
[1724276606812,8.65940598,2644.7,2644.4,12.54865206]
[1724276620556,8.2644,2644.7,2644.4,12.54865206]
[1724276621229,13.628225,2644.7,2644.4,12.54865206]
[1724276621419,13.628225,2644.7,2644.2,3.78184]
[1724276621420,13.628225,2644.7,2644.3,12.54865206]
[1724276622198,12.04559,2644.7,2644.3,12.54865206]
[1724276628839,12.04559,2644.7,2644.3,12.54742225]
[1724276630529,0.39492311,2644.6,2644.3,12.54742225]
[1724276634343,3.78156,2644.5,2644.3,12.54742225]
[1724276634543,3.78178,2644.3,2644.1,12.54742225]
[1724276634864,3.78178,2644.3,2643.7,1.607]
[1724276634865,8.4776,2644.2,2643.9,12.54742225]
[1724276635174,8.4776,2644.2,2643.8,12.54742225]
[1724276635367,12.25946,2644.2,2643.8,12.54742225]
[1724276635849,9.864246,2644.2,2643.8,12.54742225]
[1724276636047,9.864246,2644.2,2643.8,16.32984225]
[1724276636246,9.864246,2644.2,2643.9,12.54742225]
[1724276636651,11.471246,2644.2,2643.9,12.54742225]
[1724276637347,12.8096,2644.1,2643.7,12.54742225]
[1724276637547,1.2413669,2644.0,2643.7,12.54742225]
[1724276638672,7.8332,2643.9,2643.7,12.54742225]
[1724276639981,5.38943,2643.8,2643.7,12.54742225]
[1724276640168,3.783,2643.5,2642.9,23.22362]
[1724276640348,1.607,2643.2,2642.9,3.78362]
[1724276640681,0.55,2643.4,2642.9,11.9828]
[1724276640854,0.55,2643.4,2643.0,1.19828]
[1724276641061,0.55,2643.4,2643.0,11.98267]
[1724276641283,0.55,2643.4,2643.1,3.78336]
[1724276641448,0.55,2643.5,2643.1,3.78336]
[1724276642382,0.55,2643.5,2642.9,7.56724]
[1724276642584,0.55,2643.5,2643.0,3.78353]
[1724276643283,8.851,2643.5,2643.0,3.78353]
[1724276645990,0.3950727,2643.4,2643.0,3.78353]
[1724276646491,0.3950727,2643.4,2642.9,5.56896429]
[1724276646492,0.3950727,2643.4,2643.1,3.78341]
[1724276646851,0.3950727,2643.4,2643.2,8.0026]
[1724276647059,0.3950727,2643.4,2643.1,3.78341]
[1724276647273,0.3950727,2643.4,2643.1,5.51890743]
[1724276650207,0.3950727,2643.4,2643.1,1.73549743]
[1724276650394,0.3950727,2643.4,2643.0,3.78353]
[1724276650763,0.3950727,2643.4,2643.1,3.78342]
[1724276655612,0.3950727,2643.4,2643.2,8.5348]
[1724276655899,0.3950727,2643.4,2643.0,8.5348]
[1724276656203,0.3950727,2643.4,2643.3,16.10108]
[1724276660115,0.3950727,2643.4,2643.3,17.70808]
[1724276662175,0.3950727,2643.4,2643.3,21.49122]
[1724276662527,0.3950727,2643.4,2643.3,21.86992]
[1724276666328,14.21604,2644.3,2643.7,3.78246]
[1724276666329,9.17054,2644.3,2643.7,3.78246]
[1724276666631,9.3773,2644.2,2643.7,3.78246]
[1724276666927,9.77234927,2644.2,2643.7,3.78246]
[1724276669631,9.77234927,2644.2,2643.9,3.78228]
[1724276670031,9.22234927,2644.2,2643.9,3.7822]
[1724276670500,0.39504927,2644.2,2643.9,3.7822]
[1724276670707,0.39504927,2644.2,2644.0,3.78212]
[1724276671352,0.39504927,2644.2,2644.1,7.564]
[1724276671493,0.39504927,2644.2,2644.1,9.15304]
[1724276672191,0.39504927,2644.2,2644.1,5.37104]
[1724276672392,0.39504927,2644.2,2644.1,9.15304]
[1724276672994,0.39504927,2644.2,2644.1,5.37104]
[1724276676335,0.39504927,2644.2,2644.1,9.15304]
[1724276676537,0.39504927,2644.2,2644.1,5.37104]
[1724276677551,0.39504927,2644.2,2644.1,9.15304]
[1724276678777,0.39504927,2644.2,2644.1,5.37104]
[1724276686290,0.39504927,2644.2,2644.1,10.76004]
[1724276687264,0.39504927,2644.2,2644.1,6.97804]
[1724276687465,0.39504927,2644.2,2644.1,10.76004]
[1724276689807,0.39504927,2644.2,2644.1,19.40954]
[1724276690217,5.38793,2644.9,2644.2,3.78182]
[1724276690425,0.39507052,2644.7,2644.2,3.78182]
[1724276690603,0.39507052,2644.7,2644.4,3.78156]
[1724276691472,0.39507052,2644.7,2644.6,3.78129]
[1724276692074,9.05277052,2644.7,2644.6,3.78129]
[1724276693224,0.39507052,2644.7,2644.6,3.78129]
[1724276697821,0.39507052,2644.7,2644.6,7.56258]
[1724276710260,0.39507052,2644.7,2644.6,9.162108]
[1724276710464,0.39507052,2644.7,2644.6,21.602098]
[1724276712457,0.03020434,2645.2,2645.1,7.56114]
[1724276713029,0.4252543,2645.2,2645.1,7.56114]
[1724276716407,0.4252543,2645.2,2645.1,16.18464]
[1724276716611,0.39504996,2645.2,2645.1,17.963804]
[1724276718372,0.39504996,2645.2,2645.1,23.351374]
[1724276718792,8.6209,2645.9,2645.6,3.77977]
[1724276719231,8.6209,2645.9,2645.6,4.157747]
[1724276719435,8.6209,2645.9,2645.6,7.937527]
[1724276719661,8.6209,2645.9,2645.6,4.157747]
[1724276721139,8.6209,2645.9,2645.7,3.77971]
[1724276721779,0.3950355,2646.0,2645.7,3.77971]
[1724276725270,0.3950355,2646.0,2645.7,4.5734557]
[1724276727898,0.3950355,2646.0,2645.7,3.77971]
[1724276731857,0.05729794,2645.9,2645.7,3.77971]
[1724276732270,0.05729794,2645.9,2645.8,3.77957]
[1724276734205,0.05729794,2645.9,2645.8,7.55914]
[1724276734512,0.05729794,2645.9,2645.8,11.33871]
[1724276734677,0.05729794,2645.9,2645.8,13.678367]
[1724276735073,0.3950355,2646.0,2645.9,7.55886]
[1724276735274,1.607,2646.4,2646.3,3.77886]
[1724276735915,2.02503683,2646.4,2646.3,3.77886]
[1724276736119,0.41803683,2646.4,2646.3,7.55772]
[1724276745510,0.41803683,2646.4,2646.3,3.77886]
[1724276745899,0.02298072,2646.4,2646.3,3.77886]
[1724276746235,0.39494941,2646.4,2646.3,3.77886]
[1724276746441,0.41823165,2646.4,2646.3,3.77886]
[1724276754272,0.41823165,2646.4,2646.3,7.55772]
[1724276754776,0.41823165,2646.4,2646.3,3.77886]
[1724276755630,0.41823165,2646.4,2646.3,7.55772]
[1724276756779,0.41823165,2646.4,2646.3,3.77886]
[1724276757075,0.41823165,2646.4,2646.3,7.55772]
[1724276758872,0.41823165,2646.4,2646.3,3.77886]
[1724276759193,0.41823165,2646.4,2646.2,7.55786]
[1724276759368,0.55,2646.3,2646.2,3.77892]
[1724276759894,8.73513446,2646.3,2646.2,3.77892]
[1724276760440,8.73513446,2646.3,2646.2,3.779]
[1724276761182,0.57333446,2646.3,2646.2,3.779]
[1724276768123,0.57333446,2646.3,2646.2,7.558]
[1724276781201,0.55,2646.3,2646.2,7.558]
[1724276781540,0.57114036,2646.3,2646.2,7.558]
[1724276795847,0.60379976,2646.3,2646.2,7.558]
[1724276800048,0.05379976,2646.3,2646.2,16.0159]
[1724276800251,0.05379976,2646.3,2646.2,17.995403]
[1724276804963,0.05379976,2646.3,2646.2,17.805403]
[1724276807470,0.04745932,2646.3,2646.2,17.805403]
[1724276809381,0.04745932,2646.3,2646.2,15.8259]
[1724276829932,0.04745932,2646.3,2646.2,19.6049]
[1724276830104,0.39494941,2646.4,2646.3,11.33658]
[1724276830423,0.39494941,2646.4,2646.3,21.77058]
[1724276830629,0.39494941,2646.4,2646.3,23.947638]
[1724276834234,0.39494941,2646.4,2646.3,27.726498]
[1724276834534,0.39494941,2646.4,2646.3,29.04030095]
[1724276834823,8.1077,2647.4,2647.1,3.77767]
[1724276835337,8.1077,2647.4,2647.2,3.77757]
[1724276835338,0.40481762,2647.3,2647.2,3.77757]
[1724276837242,0.40481762,2647.3,2647.1,3.7777]
[1724276837443,0.44000946,2647.3,2647.1,3.7777]
[1724276840630,0.44000946,2647.3,2647.2,8.6754]
[1724276841230,0.44000946,2647.3,2647.1,5.341498]
[1724276841793,0.44000946,2647.3,2647.1,3.7777]
[1724276842014,0.44000946,2647.3,2647.2,8.6754]
[1724276843805,0.04510401,2647.3,2647.2,8.6754]
[1724276844539,0.04510401,2647.3,2647.2,12.45297]
[1724276845128,0.04510401,2647.3,2647.2,16.23054]
[1724276845333,0.04510401,2647.3,2647.2,18.014294]
[1724276848340,0.04510401,2647.3,2647.2,21.791864]
[1724276848506,0.39488279,2647.7,2647.6,11.8816]
[1724276848708,1.607,2647.9,2647.6,11.8816]
[1724276848905,1.607,2647.9,2647.7,3.77685]
[1724276849209,2.0018603,2647.9,2647.7,3.77685]
[1724276849535,2.0018603,2647.9,2647.7,5.342705]
[1724276849907,2.0018603,2647.9,2647.7,9.119465]
[1724276850263,0.3948603,2647.9,2647.8,3.77672]
[1724276851953,1.607,2648.1,2647.8,3.77672]
[1724276852123,0.03610971,2647.9,2647.8,3.77672]
[1724276852324,0.39483653,2647.9,2647.8,5.4991135]
[1724276852556,0.43094624,2647.9,2647.8,5.4991135]
[1724276855529,0.43950688,2647.9,2647.8,5.4991135]
[1724276857056,0.43950688,2647.9,2647.8,9.2758335]
[1724276860280,0.43950688,2647.9,2647.8,5.4991135]
[1724276860752,0.04467035,2647.9,2647.8,5.4991135]
[1724276861767,0.04467035,2647.9,2647.8,1.7223935]
[1724276862373,0.04467035,2647.9,2647.7,3.77683]
[1724276863066,3.82129035,2647.9,2647.5,3.77705]
[1724276863431,3.77662,2647.9,2647.5,3.77705]
[1724276864353,8.35244556,2647.8,2647.5,3.77705]
[1724276866138,12.12926556,2647.8,2647.3,3.77742]
[1724276866472,0.55,2647.7,2647.1,11.2676]
[1724276866671,0.55,2647.7,2647.1,6.86582527]
[1724276866838,0.00896726,2647.6,2647.1,6.86582527]
[1724276867037,0.04445102,2647.6,2647.2,3.77749]
[1724276867239,8.7261,2647.5,2647.2,3.77749]
[1724276867633,0.03514717,2647.4,2647.2,3.77749]
[1724276868354,0.03514717,2647.4,2647.3,3.77743]
[1724276868564,0.03514717,2647.4,2647.1,3.7776]
[1724276869070,12.50325,2647.5,2647.1,3.7776]
[1724276869276,0.55,2647.4,2646.9,23.21786]
[1724276869446,8.6803,2647.3,2647.0,3.77783]
[1724276869651,0.55,2647.2,2646.8,3.77804]
[1724276869848,0.55,2647.2,2646.9,3.77792]
[1724276870050,0.00935793,2647.1,2646.9,3.77792]
[1724276870452,0.00935793,2647.1,2646.7,3.77822]
[1724276870783,8.796,2646.9,2646.4,15.04722]
[1724276871082,8.796,2646.8,2646.4,3.77859]
[1724276871270,9.35594263,2646.8,2646.4,3.77859]
[1724276871654,9.35594263,2646.8,2646.3,3.77882]
[1724276871981,9.35594263,2646.8,2646.2,3.77894]
[1724276872156,9.35594263,2646.8,2646.4,3.77868]
[1724276874184,0.03289109,2646.7,2646.4,3.77868]
[1724276874478,0.03289109,2646.7,2646.2,3.77889]
[1724276874684,0.03289109,2646.7,2646.3,3.77885]
[1724276876338,0.39481969,2646.6,2646.3,3.77885]
[1724276876947,0.01014727,2646.5,2646.3,3.77885]
[1724276877758,0.03220386,2646.4,2646.3,3.77885]
[1724276880992,0.03220386,2646.4,2646.2,3.77889]
[1724276881289,0.03220386,2646.4,2646.2,7.55782]
[1724276881647,0.03220386,2646.4,2646.2,3.77889]
[1724276885716,0.01014288,2646.3,2646.2,3.77889]
[1724276888995,0.01014288,2646.3,2646.1,3.77913]
[1724276889579,0.01014288,2646.3,2646.0,1.607]
[1724276889818,0.56014288,2646.3,2646.0,1.607]
[1724276890185,0.56014288,2646.3,2646.0,5.38627]
[1724276890586,0.56014288,2646.3,2646.0,9.16549]
[1724276891134,0.56014288,2646.3,2646.0,5.38622]
[1724276891502,0.39478282,2646.2,2646.0,5.38622]
[1724276891688,0.39478282,2646.2,2646.0,9.16542]
[1724276891886,0.39478282,2646.2,2646.0,5.3862]
[1724276892306,0.00986821,2646.1,2646.0,3.7792]
[1724276893583,0.00986821,2646.1,2645.9,3.77939]
[1724276893584,0.55986821,2646.1,2645.9,3.77939]
[1724276895531,0.03217633,2646.0,2645.9,3.77939]
[1724276897432,8.09827633,2646.0,2645.8,23.21956]
[1724276897589,8.0661,2646.0,2645.8,23.21956]
[1724276897795,0.01026329,2645.9,2645.8,23.21956]
[1724276898802,0.56026329,2645.9,2645.6,3.77974]
[1724276899027,0.03042066,2645.8,2645.5,3.77999]
[1724276899455,8.0661,2645.7,2645.4,3.78012]
[1724276902036,0.56093064,2645.1,2644.8,3.78098]
[1724276902742,0.02848505,2645.0,2644.8,3.78098]
[1724276906979,0.42328268,2645.0,2644.8,3.78098]
[1724276907185,0.42328268,2645.0,2644.7,3.78104]
[1724276907381,0.55,2644.9,2644.7,3.78104]
[1724276907749,0.01077227,2644.8,2644.7,3.78104]
[1724276909984,0.03934141,2644.8,2644.7,3.78104]
[1724276915136,8.78184141,2644.8,2644.5,3.78136]
[1724276915336,2.157,2644.7,2644.2,3.78175]
[1724276915700,0.03913853,2644.6,2644.2,3.78175]
[1724276915900,3.82052853,2644.6,2644.0,3.78204]
[1724276916209,0.55,2644.5,2644.1,3.78192]
[1724276916421,8.7425,2644.4,2644.1,3.78192]
[1724276916635,0.55,2644.3,2644.1,3.78192]
[1724276917299,0.02751172,2644.2,2644.1,3.78192]
[1724276917751,0.55,2644.3,2644.0,3.78214]
[1724276917952,0.02757239,2644.2,2644.0,3.78214]
[1724276918447,0.02740359,2644.1,2644.0,3.78214]
[1724276918754,4.33173,2644.3,2643.8,3.78232]
[1724276918967,0.02756316,2644.1,2643.8,3.78232]
[1724276919115,0.02779263,2644.2,2643.8,3.78232]
[1724276919315,8.11357,2644.3,2643.8,3.78232]
[1724276919316,0.0270303,2644.0,2643.8,3.78232]
[1724276919550,9.72058,2644.3,2643.8,3.78232]
[1724276919753,0.02680079,2643.9,2643.8,3.78232]
[1724276919925,0.55,2643.9,2643.8,3.78232]
[1724276920131,0.57686147,2643.9,2643.7,3.78257]
[1724276922042,0.97178488,2643.9,2643.7,3.78257]
[1724276922645,0.97178488,2643.9,2643.8,3.78243]
[1724276925132,0.97178488,2643.9,2643.6,3.78261]
[1724276925444,0.97178488,2643.9,2643.7,3.78255]
[1724276925774,0.97178488,2643.9,2643.6,3.78261]
[1724276929003,0.97178488,2643.9,2643.5,3.78285]
[1724276930546,0.01073138,2643.8,2643.5,3.78285]
[1724276932165,0.01073138,2643.8,2643.4,4.16189]
[1724276932342,0.02664512,2643.7,2643.4,4.16189]
[1724276932748,4.34316138,2643.8,2643.4,4.16189]
[1724276932955,4.34316138,2643.8,2643.2,3.78319]
[1724276932956,0.02611215,2643.6,2643.2,3.78319]
[1724276933188,0.55,2643.6,2643.2,3.78319]
[1724276933389,0.02588256,2643.5,2643.2,3.78319]
[1724276933576,0.57588256,2643.5,2643.2,3.78319]
[1724276933956,11.89411,2643.4,2643.1,0.379]
[1724276934178,0.55,2643.3,2643.1,0.379]
[1724276934384,0.57554473,2643.3,2643.1,0.379]
[1724276937599,0.97052122,2643.3,2643.1,0.379]
[1724276938161,0.97052122,2643.3,2642.9,4.16271]
[1724276938464,0.97052122,2643.3,2642.9,3.78371]
[1724276939697,0.97052122,2643.3,2642.8,3.78377]
[1724276939698,4.75371122,2643.3,2642.8,3.78377]
[1724276941387,8.1111,2643.2,2642.8,3.78377]
[1724276941578,0.55,2643.1,2642.8,3.78377]
[1724276941979,0.02400229,2643.0,2642.8,3.78377]
[1724276945574,0.01261513,2642.9,2642.8,3.78377]
[1724276945782,0.01261513,2642.9,2642.8,12.41967]
[1724276945993,0.01261513,2642.9,2642.8,16.20353]
[1724276946164,0.55,2643.1,2643.0,3.78357]
[1724276946371,0.55,2643.2,2643.1,12.41933]
[1724276946886,0.55,2643.2,2643.1,3.78343]
[1724276950399,0.55,2643.2,2643.0,3.78355]
[1724276952669,0.55,2643.2,2642.9,3.7836]
[1724276952870,1.607,2643.1,2642.9,3.7836]
[1724276953072,0.55,2643.0,2642.9,3.7836]
[1724276953299,0.55,2643.2,2642.9,7.56723]
[1724276953678,0.39484467,2643.1,2642.9,3.7836]
[1724276953877,0.55,2643.0,2642.9,3.7836]
[1724276955901,0.55,2643.0,2642.7,4.16297]
[1724276956104,0.55,2643.0,2642.7,0.379]
[1724276956305,0.55,2643.0,2642.7,8.4415]
[1724276956482,0.55,2643.0,2642.8,3.78386]
[1724276956681,0.55,2643.0,2642.8,3.78379]
[1724276958719,0.55,2643.0,2642.8,3.78378]
[1724276959285,0.55,2643.0,2642.9,3.78372]
[1724276961817,0.55,2643.0,2642.9,12.02682]
[1724276963722,0.39484467,2643.1,2643.0,7.56714]
[1724276963930,0.39484467,2643.1,2643.0,16.14124]
[1724276964438,0.39484467,2643.1,2643.0,19.92481]
[1724276965012,0.39484467,2643.1,2643.0,20.30381]
[1724276965429,0.39484467,2643.1,2643.0,21.91081]
[1724276965613,0.39484467,2643.1,2643.0,24.263787]
[1724276966566,0.39484467,2643.1,2643.0,27.263787]
[1724276967740,8.4793,2644.6,2644.4,3.7815]
[1724276967944,1.607,2644.8,2644.4,3.7815]
[1724276968108,10.0863,2644.9,2644.6,3.78127]
[1724276968292,10.0863,2644.9,2644.6,3.78119]
[1724276968497,10.0863,2644.9,2644.2,5.76784]
[1724276968498,0.39471869,2645.2,2645.1,3.78057]
[1724276968735,1.607,2645.3,2645.1,3.78057]
[1724276968932,12.25924,2645.6,2645.1,3.78057]
[1724276969142,12.25924,2645.6,2645.1,3.78049]
[1724276969143,8.4793,2645.6,2645.1,3.78049]
[1724276969297,1.607,2645.5,2645.1,7.56097]
[1724276969514,1.607,2645.5,2645.1,3.78048]
[1724276969830,1.607,2645.8,2645.4,3.78]
[1724276970035,1.607,2645.8,2645.4,7.56005]
[1724276970495,0.39464813,2645.9,2645.4,7.56005]
[1724276970797,3.77931,2646.0,2645.4,7.56001]
[1724276971163,0.39461255,2645.8,2645.5,3.77996]
[1724276972363,0.55,2645.7,2645.5,3.77996]
[1724276973390,0.55,2645.7,2645.4,7.56004]
[1724276973561,0.55,2645.7,2645.4,3.78]
[1724276973898,0.55,2645.7,2645.4,7.56007]
[1724276974161,0.55,2645.7,2645.4,7.56006]
[1724276974449,0.55,2645.7,2645.4,3.78]
[1724276974790,0.55,2645.7,2645.4,7.56007]
[1724276975447,0.55,2645.7,2645.4,3.78]
[1724276975594,0.55,2645.7,2645.4,7.56006]
[1724276976100,0.55,2645.7,2645.5,3.77996]
[1724276976871,0.55,2645.7,2645.6,3.77986]
[1724276990569,0.55,2645.7,2645.4,5.393426]
[1724276990860,0.55,2645.9,2645.4,5.393426]
[1724276991012,0.55,2645.9,2645.4,3.78001]
[1724276991443,0.59131893,2645.9,2645.4,3.78001]
[1724276991754,0.59131893,2645.9,2645.5,3.77998]
[1724276993055,0.55,2645.9,2645.5,3.77998]
[1724276994442,8.6118,2645.8,2645.5,3.77998]